[Event "AUT-ch 2018"]
[Site "Vienna"]
[Date "2018.07.27"]
[Round "7"]
[White "Miazhynski, Yuri"]
[Black "Zanon, Magnus"]
[Result "1-0"]
[ECO "C00"]
[WhiteElo "2147"]
[BlackElo "2022"]
[Annotator "NA"]
[PlyCount "89"]
[EventDate "2018.07.22"]
[EventType "swiss"]
[EventCountry "AUT"]
[SourceTitle "playchess.com"]
[Source "ChessBase"]
[SourceQuality "1"]
[TimeControl "40/5400+30:1800+30"]

1. e4 {[%emt 0:00:00]} e6 {[%emt 0:00:05]} 2. d3 {[%emt 0:00:00]} d5 {[%emt 0:00:41]} 3. Nd2 {[%emt 0:00:05]} Nf6 {[%emt 0:01:02]} 4. g3 {[%emt 0:00:18]} Be7 {[%emt 0:01:13]} 5. Bg2 {[%emt 0:00:18]} c5 {[%emt 0:00:07]} 6. Ngf3 {[%emt 0:01:30]} Nc6 {[%emt 0:05:03]} 7. O-O {[%emt 0:00:44]} b5 {[%emt 0:00:10]} 8. exd5 {[%emt 0:03:34]} exd5 {[%emt 0:02:04]} 9. a4 {[%emt 0:01:50]} b4 {[%emt 0:05:52]} 10. d4 {[%emt 0:02:25]} O-O {[%emt 0:07:08]} 11. dxc5 {[%emt 0:02:45]} Ba6 {[%emt 0:02:22]} 12. Re1 {[%emt 0:01:14]} Bxc5 {[%emt 0:00:09]} 13. Nb3 {[%emt 0:00:46]} Bb6 {[%emt 0:02:39]} 14. Be3 {[%emt 0:09:22]} Bxe3 {[%emt 0:15:14]} 15. Rxe3 {[%emt 0:00:21]} Bc4 {[%emt 0:02:43]} 16. Nbd4 {[%emt 0:03:46]} Rc8 {[%emt 0:02:13]} 17. Nxc6 {[%emt 0:27:46]} Rxc6 {[%emt 0:00:29]} 18. Nd4 {[%emt 0:00:23]} Rc7 {[%emt 0:03:51]} 19. Qf3 {[%emt 0:22:07]} Re8 {[%emt 0:05:53]} 20. Rae1 {[%emt 0:00:39]} Rce7 {[%emt 0:02:01]} 21. b3 {[%emt 0:07:57]} Ba6 {[%emt 0:01:37]} 22. Nc6 {[%emt 0:00:44]} Rxe3 {[%emt 0:00:06]} 23. Rxe3 {[%emt 0:00:05]} Rxe3 {[%emt 0:04:02]} 24. Qxe3 {[%emt 0:00:16]} Qd6 {[%emt 0:00:59]} 25. Nxa7 {[%emt 0:02:14]} Qc7 {[%emt 0:00:20]} 26. Nb5 {[%emt 0:05:10]} Qxc2 {[%emt 0:00:10]} 27. h3 {[%emt 0:00:12]} h6 {[%emt 0:00:56]} 28. Qa7 {[%emt 0:03:30]} Qc6 {[%emt 0:01:34]} 29. Qc7 {[%emt 0:01:46]} Qe6 {[%emt 0:02:52]} 30. Kh2 {[%emt 0:00:39]} Ne4 {[%emt 0:01:02]} 31. Qd8+ {[%emt 0:01:41]} Kh7 {[%emt 0:00:33]} 32. Nc7 {[%emt 0:00:09]} Qb6 {[%emt 0:03:57]} 33. Qxd5 {[%emt 0:00:22]} Qxc7 {[%emt 0:03:13]} 34. Qxe4+ {[%emt 0:00:12]} g6 {[%emt 0:00:15]} 35. Qxb4 {[%emt 0:00:08]} Qc2 {[%emt 0:00:25]} 36. Qb6 {[%emt 0:00:21]} Bc8 {[%emt 0:00:31]} 37. a5 {[%emt 0:00:56]} Qe2 {[%emt 0:01:06]} 38. b4 {[%emt 0:00:51]} Ba6 {[%emt 0:00:26]} 39. Bd5 {[%emt 0:01:07]} h5 {[%emt 0:01:38]} 40. h4 {[%emt 0:00:31]} Qf1 {[%emt 0:32:20]} 41. Qa7 {[%emt 0:01:29]} Kh6 {[%emt 0:00:00]} 42. Qxf7 {[%emt 0:00:26]} Qa1 {[%emt 0:00:00]} 43. Qf8+ {[%emt 0:01:19]} Kh7 {[%emt 0:00:00]} 44. Bg8+ {[%emt 0:00:16]} Kh8 {[%emt 0:00:00]} 45. Bf7+ {[%emt 0:00:09]} 1-0

[Event "AUT-ch 2018"]
[Site "Vienna"]
[Date "2018.07.27"]
[Round "7"]
[White "Holzleithner, Johannes"]
[Black "Trippold, Denise"]
[Result "0-1"]
[ECO "A00"]
[WhiteElo "2138"]
[BlackElo "2138"]
[Annotator "NA"]
[PlyCount "94"]
[EventDate "2018.07.22"]
[EventType "swiss"]
[EventCountry "AUT"]
[SourceTitle "playchess.com"]
[Source "ChessBase"]
[SourceQuality "1"]
[TimeControl "40/5400+30:1800+30"]

1. b4 {[%emt 0:00:00]} e5 {[%emt 0:00:10]} 2. Bb2 {[%emt 0:00:00]} Bxb4 {[%emt 0:00:13]} 3. Bxe5 {[%emt 0:00:00]} Nf6 {[%emt 0:00:12]} 4. c4 {[%emt 0:00:00]} O-O {[%emt 0:01:32]} 5. e3 {[%emt 0:00:09]} Nc6 {[%emt 0:04:00]} 6. Bb2 {[%emt 0:00:05]} d5 {[%emt 0:00:35]} 7. cxd5 {[%emt 0:00:25]} Nxd5 {[%emt 0:00:47]} 8. Nf3 {[%emt 0:00:09]} Re8 {[%emt 0:05:09]} 9. Be2 {[%emt 0:01:22]} Bg4 {[%emt 0:07:44]} 10. O-O {[%emt 0:00:27]} Qe7 {[%emt 0:19:40]} 11. Qb3 {[%emt 0:04:56]} Nf4 {[%emt 0:11:51]} 12. Bd1 {[%emt 0:09:31]} Ng6 {[%emt 0:10:01]} 13. Nc3 {[%emt 0:02:30]} Na5 {[%emt 0:01:54]} 14. Nd5 {[%emt 0:07:16]} Nxb3 {[%emt 0:00:06]} 15. Nxe7+ {[%emt 0:00:13]} Nxe7 {[%emt 0:04:23]} 16. Bxb3 {[%emt 0:02:18]} Bxf3 {[%emt 0:04:37]} 17. gxf3 {[%emt 0:00:03]} Bxd2 {[%emt 0:00:21]} 18. Rfd1 {[%emt 0:00:28]} Bb4 {[%emt 0:05:52]} 19. Rd4 {[%emt 0:02:15]} Bd6 {[%emt 0:01:20]} 20. Rg4 {[%emt 0:02:27]} g6 {[%emt 0:00:52]} 21. e4 {[%emt 0:05:17]} Rad8 {[%emt 0:07:14]} 22. Bf6 {[%emt 0:05:09]} Bc5 {[%emt 0:01:09]} 23. Rc1 {[%emt 0:03:03]} Bb6 {[%emt 0:00:47]} 24. e5 {[%emt 0:06:33]} Rd2 {[%emt 0:00:35]} 25. e6 {[%emt 0:04:04]} fxe6 {[%emt 0:01:25]} 26. Bxe6+ {[%emt 0:00:03]} Kf8 {[%emt 0:00:03]} 27. Bg5 {[%emt 0:00:17]} Nf5 {[%emt 0:01:02]} 28. Bxd2 {[%emt 0:02:24]} Rxe6 {[%emt 0:00:04]} 29. Re4 {[%emt 0:01:07]} Rf6 {[%emt 0:05:28]} 30. Rce1 {[%emt 0:02:21]} Rc6 {[%emt 0:01:59]} 31. Bb4+ {[%emt 0:04:53]} Kf7 {[%emt 0:00:19]} 32. R1e2 {[%emt 0:07:47]} Rc1+ {[%emt 0:02:06]} 33. Kg2 {[%emt 0:00:51]} Bd4 {[%emt 0:02:09]} 34. Rd2 {[%emt 0:01:07]} c5 {[%emt 0:00:41]} 35. Ba3 {[%emt 0:03:17]} Rb1 {[%emt 0:00:03]} 36. Rc2 {[%emt 0:01:36]} b6 {[%emt 0:00:31]} 37. Bc1 {[%emt 0:01:53]} Bf6 {[%emt 0:01:18]} 38. Rf4 {[%emt 0:07:12]} Be5 {[%emt 0:00:35]} 39. Ra4 {[%emt 0:03:01]} a5 {[%emt 0:00:06]} 40. Re2 {[%emt 0:00:02]} Bf6 {[%emt 0:30:52]} 41. Be3 {[%emt 0:40:13]} Nh4+ {[%emt 0:00:00]} 42. Kg3 {[%emt 0:00:00]} g5 {[%emt 0:00:00]} 43. Bxg5 {[%emt 0:00:00]} Bxg5 {[%emt 0:00:00]} 44. Rxh4 {[%emt 0:00:00]} Bxh4+ {[%emt 0:00:00]} 45. Kxh4 {[%emt 0:00:00]} c4 {[%emt 0:00:00]} 46. Rc2 {[%emt 0:00:00]} b5 {[%emt 0:00:00]} 47. a4 {[%emt 0:00:00]} bxa4 {[%emt 0:00:00]} 0-1

[Event "AUT-ch 2018"]
[Site "Vienna"]
[Date "2018.07.27"]
[Round "7"]
[White "Toelly, Michael"]
[Black "Pernerstorfer, Johannes"]
[Result "1/2-1/2"]
[ECO "B32"]
[WhiteElo "2127"]
[BlackElo "2066"]
[Annotator "NA"]
[PlyCount "60"]
[EventDate "2018.07.22"]
[EventType "swiss"]
[EventCountry "AUT"]
[SourceTitle "playchess.com"]
[Source "ChessBase"]
[SourceQuality "1"]
[TimeControl "40/5400+30:1800+30"]

1. e4 {[%emt 0:00:00]} c5 {[%emt 0:01:46]} 2. Nf3 {[%emt 0:00:00]} Nc6 {[%emt 0:02:33]} 3. d4 {[%emt 0:00:00]} cxd4 {[%emt 0:02:26]} 4. Nxd4 {[%emt 0:00:00]} e5 {[%emt 0:02:50]} 5. Nb5 {[%emt 0:00:41]} d6 {[%emt 0:02:13]} 6. c4 {[%emt 0:01:02]} Be7 {[%emt 0:02:31]} 7. Be2 {[%emt 0:04:09]} f5 {[%emt 0:03:38]} 8. exf5 {[%emt 0:00:27]} Bxf5 {[%emt 0:02:17]} 9. Bg4 {[%emt 0:01:04]} Bd7 {[%emt 0:10:51]} 10. O-O {[%emt 0:10:00]} Nf6 {[%emt 0:00:44]} 11. Bxd7+ {[%emt 0:00:06]} Qxd7 {[%emt 0:00:26]} 12. Be3 {[%emt 0:08:40]} O-O {[%emt 0:01:26]} 13. N5c3 {[%emt 0:03:26]} Kh8 {[%emt 0:06:16]} 14. Qe2 {[%emt 0:03:35]} Qf5 {[%emt 0:11:24]} 15. Nd2 {[%emt 0:03:47]} Nb4 {[%emt 0:01:34]} 16. a3 {[%emt 0:01:05]} Nd3 {[%emt 0:02:30]} 17. f3 {[%emt 0:05:11]} Nf4 {[%emt 0:05:02]} 18. Bxf4 {[%emt 0:01:05]} Qxf4 {[%emt 0:00:26]} 19. Nde4 {[%emt 0:00:39]} Rac8 {[%emt 0:05:31]} 20. Rfd1 {[%emt 0:02:00]} Rc6 {[%emt 0:06:14]} 21. Nd5 {[%emt 0:03:18]} Nxd5 {[%emt 0:01:51]} 22. Rxd5 {[%emt 0:00:03]} Bd8 {[%emt 0:04:21]} 23. Nxd6 {[%emt 0:03:44]} Bb6+ {[%emt 0:01:13]} 24. Kh1 {[%emt 0:00:15]} Bc5 {[%emt 0:08:39]} 25. Nxb7 {[%emt 0:07:17]} Qxh2+ {[%emt 0:05:48]} 26. Kxh2 {[%emt 0:00:04]} Rh6+ {[%emt 0:00:14]} 27. Kg3 {[%emt 0:02:42]} Rg6+ {[%emt 0:00:08]} 28. Kh2 {[%emt 0:02:40]} Rh6+ {[%emt 0:00:12]} 29. Kg3 {[%emt 0:00:05]} Rg6+ {[%emt 0:00:10]} 30. Kh2 {[%emt 0:02:16]} Rh6+ {[%emt 0:00:12]} 1/2-1/2

[Event "AUT-ch 2018"]
[Site "Vienna"]
[Date "2018.07.27"]
[Round "7"]
[White "Breneis, Lukas"]
[Black "Hupfer, Robert"]
[Result "0-1"]
[ECO "B00"]
[WhiteElo "2122"]
[BlackElo "2122"]
[Annotator "NA"]
[PlyCount "130"]
[EventDate "2018.07.22"]
[EventType "swiss"]
[EventCountry "AUT"]
[SourceTitle "playchess.com"]
[Source "ChessBase"]
[SourceQuality "1"]
[TimeControl "40/5400+30:1800+30"]

1. e4 {[%emt 0:00:00]} b6 {[%emt 0:00:06]} 2. d4 {[%emt 0:03:09]} Bb7 {[%emt 0:00:07]} 3. Bd3 {[%emt 0:00:05]} e6 {[%emt 0:00:15]} 4. Ne2 {[%emt 0:04:20]} Nf6 {[%emt 0:02:29]} 5. f3 {[%emt 0:09:52]} c5 {[%emt 0:01:34]} 6. c3 {[%emt 0:01:37]} Nc6 {[%emt 0:03:56]} 7. a3 {[%emt 0:08:49]} Be7 {[%emt 0:10:57]} 8. Be3 {[%emt 0:02:53]} d6 {[%emt 0:03:54]} 9. O-O {[%emt 0:05:43]} O-O {[%emt 0:03:04]} 10. Nd2 {[%emt 0:02:55]} Rc8 {[%emt 0:04:22]} 11. g4 {[%emt 0:06:53]} Rc7 {[%emt 0:07:44]} 12. Ng3 {[%emt 0:05:26]} cxd4 {[%emt 0:12:16]} 13. cxd4 {[%emt 0:00:06]} Qc8 {[%emt 0:00:53]} 14. b4 {[%emt 0:10:07]} Nd7 {[%emt 0:06:27]} 15. f4 {[%emt 0:02:37]} f6 {[%emt 0:07:33]} 16. d5 {[%emt 0:11:14]} exd5 {[%emt 0:03:29]} 17. exd5 {[%emt 0:00:06]} Nd8 {[%emt 0:01:08]} 18. Nf5 {[%emt 0:01:18]} Re8 {[%emt 0:00:45]} 19. Qf3 {[%emt 0:04:38]} Bf8 {[%emt 0:03:52]} 20. Bd4 {[%emt 0:03:37]} g6 {[%emt 0:04:06]} 21. g5 {[%emt 0:03:49]} fxg5 {[%emt 0:05:38]} 22. fxg5 {[%emt 0:00:52]} Ne5 {[%emt 0:03:29]} 23. Bxe5 {[%emt 0:04:10]} Rxe5 {[%emt 0:02:01]} 24. Ne3 {[%emt 0:02:13]} Rxg5+ {[%emt 0:04:53]} 25. Kh1 {[%emt 0:00:05]} Bg7 {[%emt 0:00:29]} 26. Rad1 {[%emt 0:03:28]} Nf7 {[%emt 0:01:09]} 27. Ne4 {[%emt 0:00:59]} Re5 {[%emt 0:02:04]} 28. Bb1 {[%emt 0:00:36]} Ng5 {[%emt 0:01:48]} 29. Nxg5 {[%emt 0:01:12]} Rxg5 {[%emt 0:00:02]} 30. Qf4 {[%emt 0:01:01]} Re5 {[%emt 0:00:13]} 31. Ng4 {[%emt 0:00:09]} Rxd5 {[%emt 0:01:05]} 32. Ba2 {[%emt 0:00:04]} Qe6 {[%emt 0:01:16]} 33. Qf3 {[%emt 0:01:32]} Rxd1 {[%emt 0:02:24]} 34. Bxe6+ {[%emt 0:00:31]} Kh8 {[%emt 0:00:07]} 35. Kg2 {[%emt 0:00:48]} Rxf1 {[%emt 0:01:05]} 36. Qxb7 {[%emt 0:00:04]} Rxb7 {[%emt 0:00:04]} 37. Kxf1 {[%emt 0:00:03]} h5 {[%emt 0:00:38]} 38. Nf2 {[%emt 0:00:31]} Bb2 {[%emt 0:00:39]} 39. a4 {[%emt 0:00:07]} Re7 {[%emt 0:00:21]} 40. Bd5 {[%emt 0:00:09]} Re5 {[%emt 0:31:14]} 41. Bc6 {[%emt 0:30:11]} Bc3 {[%emt 0:00:42]} 42. Nd3 {[%emt 0:01:24]} Re3 {[%emt 0:00:00]} 43. Bb5 {[%emt 0:00:00]} Re4 {[%emt 0:00:00]} 44. Kf2 {[%emt 0:00:00]} Bxb4 {[%emt 0:00:00]} 45. Kf3 {[%emt 0:00:00]} Rh4 {[%emt 0:00:00]} 46. Bd7 {[%emt 0:00:00]} Kg7 {[%emt 0:00:00]} 47. h3 {[%emt 0:00:00]} Bd2 {[%emt 0:00:00]} 48. Nf2 {[%emt 0:00:00]} Rf4+ {[%emt 0:00:00]} 49. Ke2 {[%emt 0:00:00]} Bc3 {[%emt 0:00:00]} 50. Nd3 {[%emt 0:00:00]} Rf7 {[%emt 0:00:00]} 51. Bb5 {[%emt 0:00:00]} Re7+ {[%emt 0:00:00]} 52. Kf3 {[%emt 0:00:00]} g5 {[%emt 0:00:00]} 53. h4 {[%emt 0:00:00]} g4+ {[%emt 0:00:00]} 54. Kf4 {[%emt 0:00:00]} Kf6 {[%emt 0:00:00]} 55. Kg3 {[%emt 0:00:00]} Be1+ {[%emt 0:00:00]} 56. Kg2 {[%emt 0:00:00]} Bxh4 {[%emt 0:00:00]} 57. Nf4 {[%emt 0:00:00]} Kg5 {[%emt 0:00:00]} 58. Nd5 {[%emt 0:00:00]} Re5 {[%emt 0:00:00]} 59. Nb4 {[%emt 0:00:00]} Rc5 {[%emt 0:00:00]} 60. Kh2 {[%emt 0:00:00]} Bf2 {[%emt 0:00:00]} 61. Nd3 {[%emt 0:00:00]} Rc2 {[%emt 0:00:00]} 62. Kg2 {[%emt 0:00:00]} Bd4+ {[%emt 0:00:00]} 63. Kh1 {[%emt 0:00:00]} Be5 {[%emt 0:00:00]} 64. Nb4 {[%emt 0:00:00]} Rc1+ {[%emt 0:00:00]} 65. Kg2 {[%emt 0:00:00]} h4 0-1

[Event "AUT-ch 2018"]
[Site "Vienna"]
[Date "2018.07.27"]
[Round "7"]
[White "Atzl, Florian"]
[Black "Exler, Veronika"]
[Result "0-1"]
[ECO "A06"]
[WhiteElo "2117"]
[BlackElo "2198"]
[Annotator "NA"]
[PlyCount "62"]
[EventDate "2018.07.22"]
[EventType "swiss"]
[EventCountry "AUT"]
[SourceTitle "playchess.com"]
[Source "ChessBase"]
[SourceQuality "1"]
[TimeControl "40/5400+30:1800+30"]

1. Nf3 {[%emt 0:00:00]} d5 {[%emt 0:00:04]} 2. g3 {[%emt 0:00:00]} Nf6 {[%emt 0:00:03]} 3. Bg2 {[%emt 0:00:00]} e6 {[%emt 0:00:04]} 4. O-O {[%emt 0:00:27]} Be7 {[%emt 0:00:03]} 5. d4 {[%emt 0:01:45]} O-O {[%emt 0:00:05]} 6. c4 {[%emt 0:00:44]} dxc4 {[%emt 0:00:05]} 7. Qc2 {[%emt 0:01:35]} a6 {[%emt 0:00:04]} 8. a4 {[%emt 0:06:58]} Bd7 {[%emt 0:00:11]} 9. Qxc4 {[%emt 0:01:32]} Bc6 {[%emt 0:00:06]} 10. Nbd2 {[%emt 0:04:19]} Nbd7 {[%emt 0:17:08]} 11. b3 {[%emt 0:03:13]} Bd5 {[%emt 0:12:48]} 12. Qc2 {[%emt 0:00:23]} c5 {[%emt 0:00:11]} 13. e4 {[%emt 0:00:55]} Bc6 {[%emt 0:00:05]} 14. Ne5 {[%emt 0:10:53]} cxd4 {[%emt 0:13:47]} 15. Nxc6 {[%emt 0:00:32]} bxc6 {[%emt 0:00:04]} 16. Qxc6 {[%emt 0:02:16]} Nc5 {[%emt 0:09:52]} 17. e5 {[%emt 0:04:30]} Nd5 {[%emt 0:00:49]} 18. Bxd5 {[%emt 0:00:12]} exd5 {[%emt 0:00:36]} 19. a5 {[%emt 0:00:32]} Rc8 {[%emt 0:14:31]} 20. Qb6 {[%emt 0:00:02]} Qd7 {[%emt 0:09:49]} 21. Qb4 {[%emt 0:02:40]} Ne6 {[%emt 0:01:17]} 22. Qa4 {[%emt 0:00:19]} Qc7 {[%emt 0:00:05]} 23. Kg2 {[%emt 0:07:31]} Qxe5 {[%emt 0:01:43]} 24. Nf3 {[%emt 0:01:08]} Qf5 {[%emt 0:05:01]} 25. Bb2 {[%emt 0:03:40]} d3 {[%emt 0:00:02]} 26. Rad1 {[%emt 0:05:12]} Rc2 {[%emt 0:01:26]} 27. Ba1 {[%emt 0:04:52]} Bc5 {[%emt 0:00:29]} 28. b4 {[%emt 0:02:01]} Nf4+ {[%emt 0:07:11]} 29. Kh1 {[%emt 0:00:39]} Qe4 {[%emt 0:00:19]} 30. Rxd3 {[%emt 0:01:17]} Qxd3 {[%emt 0:02:37]} 31. Ne1 {[%emt 0:00:07]} Qxf1# {[%emt 0:00:07]} 0-1

[Event "AUT-ch 2018"]
[Site "Vienna"]
[Date "2018.07.27"]
[Round "7"]
[White "Charaus, Florian"]
[Black "Ebner, Johann"]
[Result "1-0"]
[ECO "E44"]
[WhiteElo "2115"]
[BlackElo "2115"]
[Annotator "NA"]
[PlyCount "63"]
[EventDate "2018.07.22"]
[EventType "swiss"]
[EventCountry "AUT"]
[SourceTitle "playchess.com"]
[Source "ChessBase"]
[SourceQuality "1"]
[TimeControl "40/5400+30:1800+30"]

1. d4 {[%emt 0:00:00]} e6 {[%emt 0:00:06]} 2. c4 {[%emt 0:00:00]} Nf6 {[%emt 0:00:07]} 3. Nc3 {[%emt 0:00:00]} Bb4 {[%emt 0:00:07]} 4. e3 {[%emt 0:00:00]} b6 {[%emt 0:00:45]} 5. Nge2 {[%emt 0:00:14]} Bb7 {[%emt 0:00:13]} 6. a3 {[%emt 0:00:05]} Bxc3+ {[%emt 0:00:49]} 7. Nxc3 {[%emt 0:00:06]} O-O {[%emt 0:00:19]} 8. Bd3 {[%emt 0:00:27]} c5 {[%emt 0:02:18]} 9. d5 {[%emt 0:04:02]} d6 {[%emt 0:01:00]} 10. O-O {[%emt 0:00:39]} e5 {[%emt 0:00:17]} 11. e4 {[%emt 0:00:05]} Nbd7 {[%emt 0:13:12]} 12. b3 {[%emt 0:02:15]} Qe7 {[%emt 0:02:56]} 13. Ra2 {[%emt 0:02:45]} Ne8 {[%emt 0:11:17]} 14. f3 {[%emt 0:14:16]} f6 {[%emt 0:07:23]} 15. Be3 {[%emt 0:00:47]} g5 {[%emt 0:00:28]} 16. g3 {[%emt 0:09:24]} Kh8 {[%emt 0:20:25]} 17. Rff2 {[%emt 0:00:44]} Rg8 {[%emt 0:00:33]} 18. Bf1 {[%emt 0:00:44]} Nf8 {[%emt 0:00:52]} 19. Bh3 {[%emt 0:04:53]} Bc8 {[%emt 0:00:34]} 20. Bg4 {[%emt 0:01:12]} Bd7 {[%emt 0:06:30]} 21. Qf1 {[%emt 0:02:16]} Rd8 {[%emt 0:02:12]} 22. Nd1 {[%emt 0:00:50]} Ng6 {[%emt 0:06:19]} 23. Bc1 {[%emt 0:04:12]} Ng7 {[%emt 0:01:58]} 24. Ne3 {[%emt 0:01:25]} Rgf8 {[%emt 0:01:30]} 25. Qh3 {[%emt 0:02:52]} Kg8 {[%emt 0:02:35]} 26. a4 {[%emt 0:03:54]} a5 {[%emt 0:00:17]} 27. Rae2 {[%emt 0:01:41]} Rf7 {[%emt 0:07:25]} 28. Bf5 {[%emt 0:04:59]} Nxf5 {[%emt 0:02:30]} 29. exf5 {[%emt 0:00:37]} Nh8 {[%emt 0:00:40]} 30. f4 {[%emt 0:04:25]} Rg7 {[%emt 0:06:51]} 31. Ng4 {[%emt 0:03:13]} Qf8 {[%emt 0:01:29]} 32. Nh6# 1-0

[Event "AUT-ch 2018"]
[Site "Vienna"]
[Date "2018.07.27"]
[Round "7"]
[White "Wagner, Leopold Franziskus"]
[Black "Iro, Christian"]
[Result "1-0"]
[ECO "A06"]
[WhiteElo "2108"]
[BlackElo "2055"]
[Annotator "NA"]
[PlyCount "103"]
[EventDate "2018.07.22"]
[EventType "swiss"]
[EventCountry "AUT"]
[SourceTitle "playchess.com"]
[Source "ChessBase"]
[SourceQuality "1"]
[TimeControl "40/5400+30:1800+30"]

1. Nf3 {[%emt 0:00:00]} d5 {[%emt 0:00:06]} 2. g3 {[%emt 0:00:00]} Nf6 {[%emt 0:00:05]} 3. Bg2 {[%emt 0:00:00]} e6 {[%emt 0:00:06]} 4. O-O {[%emt 0:00:00]} Be7 {[%emt 0:00:04]} 5. d4 {[%emt 0:00:42]} O-O {[%emt 0:00:09]} 6. Ne5 {[%emt 0:01:13]} c5 {[%emt 0:02:01]} 7. c3 {[%emt 0:01:36]} Nc6 {[%emt 0:02:03]} 8. f4 {[%emt 0:01:46]} Qc7 {[%emt 0:03:23]} 9. e3 {[%emt 0:00:20]} a5 {[%emt 0:03:06]} 10. a4 {[%emt 0:01:25]} b6 {[%emt 0:05:02]} 11. g4 {[%emt 0:00:32]} Ne4 {[%emt 0:14:53]} 12. Na3 {[%emt 0:02:04]} Ba6 {[%emt 0:09:29]} 13. Rf3 {[%emt 0:00:17]} Nxe5 {[%emt 0:01:28]} 14. dxe5 {[%emt 0:02:16]} f6 {[%emt 0:06:02]} 15. exf6 {[%emt 0:00:15]} Nxf6 {[%emt 0:04:37]} 16. g5 {[%emt 0:05:22]} Ne4 {[%emt 0:02:26]} 17. g6 {[%emt 0:01:09]} h6 {[%emt 0:01:53]} 18. Bd2 {[%emt 0:04:09]} Rf6 {[%emt 0:06:24]} 19. Be1 {[%emt 0:00:53]} Rd8 {[%emt 0:01:21]} 20. Bg3 {[%emt 0:02:50]} Nxg3 {[%emt 0:02:18]} 21. hxg3 {[%emt 0:01:24]} Rxg6 {[%emt 0:02:23]} 22. Qc2 {[%emt 0:00:39]} Rf6 {[%emt 0:00:30]} 23. g4 {[%emt 0:00:28]} e5 {[%emt 0:06:54]} 24. f5 {[%emt 0:01:49]} e4 {[%emt 0:00:20]} 25. Rh3 {[%emt 0:00:28]} Bd3 {[%emt 0:00:15]} 26. Qf2 {[%emt 0:00:44]} Rf7 {[%emt 0:00:18]} 27. Bf1 {[%emt 0:00:53]} Bxf1 {[%emt 0:00:59]} 28. Rxf1 {[%emt 0:00:28]} Qe5 {[%emt 0:00:31]} 29. Nb5 {[%emt 0:00:38]} Bg5 {[%emt 0:00:31]} 30. Qc2 {[%emt 0:01:24]} g6 {[%emt 0:04:02]} 31. fxg6 {[%emt 0:02:44]} Rxf1+ {[%emt 0:00:01]} 32. Kxf1 {[%emt 0:00:10]} Rf8+ {[%emt 0:00:19]} 33. Kg2 {[%emt 0:02:15]} Qf6 {[%emt 0:03:21]} 34. Qe2 {[%emt 0:01:00]} Qxg6 {[%emt 0:00:44]} 35. b4 axb4 {[%emt 0:00:05]} 36. cxb4 {[%emt 0:15:40]} Qe6 {[%emt 0:07:56]} 37. a5 {[%emt 0:00:33]} bxa5 {[%emt 0:03:21]} 38. bxc5 {[%emt 0:02:10]} Rf3 {[%emt 0:02:31]} 39. Rg3 {[%emt 0:02:10]} Bh4 {[%emt 0:07:26]} 40. Rxf3 {[%emt 0:00:53]} Qxg4+ {[%emt 0:30:04]} 41. Rg3 {[%emt 0:30:06]} Qxg3+ {[%emt 0:00:09]} 42. Kf1 {[%emt 0:03:01]} Bg5 {[%emt 0:00:00]} 43. Qh5 {[%emt 0:00:00]} Qe5 {[%emt 0:00:00]} 44. Nd4 {[%emt 0:00:00]} a4 {[%emt 0:00:00]} 45. c6 {[%emt 0:00:00]} a3 {[%emt 0:00:00]} 46. Qg6+ {[%emt 0:00:00]} Kh8 {[%emt 0:00:00]} 47. Ne6 {[%emt 0:00:00]} Qf6+ {[%emt 0:02:27]} 48. Qxf6+ {[%emt 0:00:00]} Bxf6 {[%emt 0:00:01]} 49. c7 {[%emt 0:00:00]} a2 {[%emt 0:00:02]} 50. c8=Q+ {[%emt 0:00:00]} Kh7 {[%emt 0:00:05]} 51. Qd7+ {[%emt 0:00:00]} Kg6 {[%emt 0:02:01]} 52. Nf8+ {[%emt 0:00:00]} 1-0

[Event "AUT-ch 2018"]
[Site "Vienna"]
[Date "2018.07.27"]
[Round "7"]
[White "Schloffer, Jasmin-Denise"]
[Black "Froewis, Georg"]
[Result "0-1"]
[ECO "D47"]
[WhiteElo "2102"]
[BlackElo "2427"]
[Annotator "NA"]
[PlyCount "80"]
[EventDate "2018.07.22"]
[EventType "swiss"]
[EventCountry "AUT"]
[SourceTitle "playchess.com"]
[Source "ChessBase"]
[SourceQuality "1"]
[TimeControl "40/5400+30:1800+30"]

1. d4 {[%emt 0:00:00]} d5 {[%emt 0:00:03]} 2. c4 {[%emt 0:00:00]} e6 {[%emt 0:00:03]} 3. Nc3 {[%emt 0:00:00]} c6 {[%emt 0:00:04]} 4. e3 {[%emt 0:00:00]} Nf6 {[%emt 0:00:09]} 5. Nf3 {[%emt 0:00:00]} Nbd7 {[%emt 0:00:04]} 6. Bd3 {[%emt 0:00:00]} dxc4 {[%emt 0:00:39]} 7. Bxc4 {[%emt 0:00:06]} b5 {[%emt 0:00:03]} 8. Be2 {[%emt 0:00:05]} Bb7 {[%emt 0:02:20]} 9. O-O {[%emt 0:00:10]} Be7 {[%emt 0:05:09]} 10. e4 {[%emt 0:01:39]} b4 {[%emt 0:00:04]} 11. e5 {[%emt 0:00:15]} bxc3 {[%emt 0:00:06]} 12. exf6 {[%emt 0:00:05]} Nxf6 {[%emt 0:04:44]} 13. bxc3 {[%emt 0:00:06]} Qc7 {[%emt 0:02:55]} 14. Rb1 {[%emt 0:06:20]} Bd6 {[%emt 0:03:46]} 15. Ne5 {[%emt 0:08:32]} O-O {[%emt 0:05:54]} 16. f4 c5 {[%emt 0:03:35]} 17. Bf3 {[%emt 0:20:26]} Rab8 {[%emt 0:01:09]} 18. Be3 {[%emt 0:03:46]} Nd5 {[%emt 0:06:18]} 19. Bxd5 {[%emt 0:05:04]} Bxd5 {[%emt 0:00:06]} 20. Qd2 {[%emt 0:00:10]} c4 {[%emt 0:02:55]} 21. Qc2 {[%emt 0:06:14]} f6 {[%emt 0:01:19]} 22. Ng4 {[%emt 0:00:24]} Rxb1 {[%emt 0:01:40]} 23. Qxb1 {[%emt 0:00:49]} Qc6 {[%emt 0:03:17]} 24. Qc2 {[%emt 0:06:04]} Be4 {[%emt 0:01:19]} 25. Qd2 {[%emt 0:00:17]} h5 {[%emt 0:00:37]} 26. Nf2 {[%emt 0:00:04]} Bxg2 {[%emt 0:00:08]} 27. Rb1 {[%emt 0:00:12]} Bd5 {[%emt 0:00:47]} 28. Qe2 {[%emt 0:02:30]} Qe8 {[%emt 0:00:15]} 29. Qc2 {[%emt 0:00:49]} Qf7 {[%emt 0:04:50]} 30. Re1 {[%emt 0:05:07]} Rb8 {[%emt 0:02:16]} 31. Bc1 {[%emt 0:01:36]} Ba8 {[%emt 0:07:16]} 32. Kf1 {[%emt 0:04:32]} Bd5 {[%emt 0:04:20]} 33. Kg1 {[%emt 0:01:45]} a6 {[%emt 0:00:20]} 34. Kf1 {[%emt 0:03:55]} Kh8 {[%emt 0:09:11]} 35. Kg1 {[%emt 0:06:49]} Qg8 {[%emt 0:00:25]} 36. f5 {[%emt 0:03:50]} Qh7 {[%emt 0:00:21]} 37. Nd1 {[%emt 0:01:22]} exf5 {[%emt 0:02:15]} 38. Ne3 {[%emt 0:00:23]} Qg6+ {[%emt 0:00:13]} 39. Kf1 {[%emt 0:01:32]} Be4 {[%emt 0:00:15]} 40. Qd2 {[%emt 0:00:11]} Bd3+ {[%emt 0:31:40]} 0-1